fUSD/lending_fUSD_20260422
["ID","MTS","AMOUNT","RATE_DAILY","PERIOD"]
[420984656,1776851440989,-3040.0484364,0.00011393,2]
[420984657,1776851440999,-161.225,0.00011398,2]
[420984658,1776851441009,-292.70971118,0.00011399,2]
[420984659,1776851441019,-339.19347396,0.00011399,2]
[420984660,1776851441029,-500.0,0.00011399,2]
[420984661,1776851441039,-500.0,0.00011399,2]
[420984662,1776851441049,-500.0,0.00011399,2]
[420984663,1776851441058,-243.42256675,0.00011399,2]
[420984664,1776851441069,-500.0,0.00011399,2]
[420984665,1776851441079,-500.0,0.00011399,2]
[420984666,1776851441088,-500.0,0.00011399,2]
[420984667,1776851441098,-451.57292046,0.00011399,2]
[420984668,1776851441108,-400.79621087,0.00011399,2]
[420984669,1776851441122,-500.0,0.00011399,2]
[420984670,1776851441132,-500.0,0.00011399,2]
[420984671,1776851441142,-500.0,0.00011399,2]
[420984672,1776851441152,-500.0,0.00011399,2]
[420984673,1776851441162,-500.0,0.00011399,2]
[420984674,1776851441172,-500.0,0.00011399,2]
[420984675,1776851441182,-500.0,0.00011399,2]
[420984676,1776851441192,-500.0,0.00011399,2]
[420984677,1776851441203,-500.0,0.00011399,2]
[420984678,1776851441213,-500.0,0.00011399,2]
[420984679,1776851441222,-317.20422173,0.00011399,2]
[420984680,1776851441232,-500.0,0.00011399,2]
[420984681,1776851441242,-500.0,0.00011399,2]
[420984682,1776851441252,-500.0,0.00011399,2]
[420984683,1776851441262,-500.0,0.00011399,2]
[420984684,1776851441272,-500.0,0.00011399,2]
[420984685,1776851441282,-500.0,0.00011399,2]
[420984686,1776851441291,-500.0,0.00011399,2]
[420984687,1776851441301,-500.0,0.00011399,2]
[420984688,1776851441311,-500.0,0.00011399,2]
[420984689,1776851441321,-500.0,0.00011399,2]
[420984690,1776851441331,-500.0,0.00011399,2]
[420984691,1776851441340,-500.0,0.00011399,2]
[420984692,1776851441350,-500.0,0.00011399,2]
[420984693,1776851441364,-500.0,0.00011399,2]
[420984694,1776851441375,-500.0,0.00011399,2]
[420984695,1776851441384,-500.0,0.00011399,2]
[420984696,1776851441395,-415.28438095,0.00011399,2]
[420984697,1776851441404,-500.0,0.00011399,2]
[420984698,1776851441414,-500.0,0.00011399,2]
[420984699,1776851441424,-500.0,0.00011399,2]
[420984700,1776851441435,-500.0,0.00011399,2]
[420984701,1776851441445,-500.0,0.00011399,2]
[420984702,1776851441455,-500.0,0.00011399,2]
[420984703,1776851441465,-500.0,0.00011399,2]
[420984704,1776851441475,-500.0,0.00011399,2]
[420984705,1776851441485,-500.0,0.00011399,2]
[420984706,1776851441495,-500.0,0.00011399,2]
[420984707,1776851441504,-500.0,0.00011399,2]
[420984708,1776851441514,-500.0,0.00011399,2]
[420984709,1776851441524,-300.00000001,0.00011399,2]
[420984710,1776851441534,-500.0,0.00011399,2]
[420984711,1776851441544,-500.0,0.00011399,2]
[420984712,1776851441554,-500.0,0.00011399,2]
[420984713,1776851441563,-500.0,0.00011399,2]
[420984714,1776851441573,-500.0,0.00011399,2]
[420984715,1776851441586,-500.0,0.00011399,2]
[420984716,1776851441596,-500.0,0.00011399,2]
[420984717,1776851441606,-500.0,0.00011399,2]
[420984718,1776851441615,-500.0,0.00011399,2]
[420984719,1776851441625,-500.0,0.00011399,2]
[420984720,1776851441635,-500.0,0.00011399,2]
[420984721,1776851441645,-500.0,0.00011399,2]
[420984722,1776851441654,-500.0,0.00011399,2]
[420984723,1776851441664,-500.0,0.00011399,2]
[420984724,1776851441674,-500.0,0.00011399,2]
[420984725,1776851441684,-500.0,0.00011399,2]
[420984726,1776851441693,-500.0,0.00011399,2]
[420984727,1776851441703,-500.0,0.00011399,2]
[420984728,1776851441713,-500.0,0.00011399,2]
[420984729,1776851441723,-500.0,0.00011399,2]
[420984730,1776851441732,-500.0,0.00011399,2]
[420984731,1776851441743,-500.0,0.00011399,2]
[420984732,1776851441753,-500.0,0.00011399,2]
[420984733,1776851441763,-500.0,0.00011399,2]
[420984734,1776851441773,-500.0,0.00011399,2]
[420984735,1776851441783,-200.0,0.00011399,2]
[420984736,1776851441793,-81419.73646529,0.000114,2]
[420984737,1776851441809,-9911.24531757,0.000114,2]
[420984738,1776851441870,-325.47403664,0.000114,2]
[420984751,1776851445667,-570.35,0.0001084,2]
[420984752,1776851445676,-868.521553,0.00011266,2]
[420984753,1776851445721,-500.64872106,0.00011266,2]
[420984756,1776851544952,-1788.906648,7.945e-05,2]
[420984757,1776851599707,653.7,7.683e-05,2]
[420984758,1776851651612,329.0,7.683e-05,3]
[420984759,1776851656659,-329.0,8.437e-05,3]
[420984760,1776851657348,155.0,7.683e-05,3]
[420984761,1776851659106,172.14,8.135e-05,2]
[420984762,1776851708885,296.0,8.135e-05,3]
[420984763,1776851709161,296.0,8.865e-05,3]
[420984764,1776851713948,155.0,8.135e-05,3]
[420984766,1776851787405,-267.0,8.135e-05,3]
[420984767,1776851802470,-267.0,8.865e-05,3]
[420984768,1776851853970,-240.0,8.135e-05,3]
[420984769,1776851870074,-240.0,8.865e-05,3]
[420984770,1776851888692,216.0,8.135e-05,3]
[420984771,1776851889418,216.0,8.865e-05,3]
[420984772,1776851953680,194.0,8.135e-05,3]
[420984773,1776851953724,194.0,8.865e-05,3]
[420984775,1776852028701,-155.0,8.135e-05,3]
[420984779,1776852080246,-175.0,8.135e-05,3]
[420984780,1776852095278,-175.0,8.865e-05,3]
[420984781,1776852128743,-157.0,8.135e-05,3]
[420984782,1776852145634,-157.0,8.865e-05,3]
[420984783,1776852205421,-490.91093981,0.0001,2]
[420984784,1776852205454,-279.0,0.0001,2]
[420984785,1776852257237,-157.0,8.135e-05,3]
[420984786,1776852275553,-301.94711781,8.949e-05,2]
[420984787,1776852275585,-250.0,8.949e-05,2]
[420984789,1776852288348,-157.0,8.951e-05,3]
[420984792,1776852303504,-157.0,9.766e-05,3]
[420984794,1776852306999,150.0,8.135e-05,3]
[420984795,1776852307266,150.0,9.059e-05,3]
[420984796,1776852312607,156.0,8.135e-05,3]
[420984797,1776852318629,-150.0,9.984e-05,3]
[420984798,1776852322185,5207.54,9.766e-05,2]
[420984800,1776852369539,-154.0,8.135e-05,3]
[420984801,1776852384336,-154.0,9.29e-05,3]
[420984802,1776852399487,-153.0,0.0001,2]
[420984803,1776852399516,-153.0,0.0001,2]
[420984804,1776852451125,-158.0,8.135e-05,3]
[420984805,1776852467040,-158.0,9.522e-05,3]
[420984806,1776852468415,300.52797023,9e-05,2]
[420984807,1776852482154,-242.0,9.863e-05,2]
[420984808,1776852487321,160.0,8.135e-05,3]
[420984810,1776852546177,160.0,8.135e-05,3]
[420984811,1776852610580,160.0,8.135e-05,3]
[420984818,1776852631726,-255.83894739,9.863e-05,2]
[420984819,1776852631782,-4.16105261,9.863e-05,2]
[420984820,1776852631792,-568.13,9.997e-05,2]
[420984821,1776852631801,-99.79894739,0.00010077,2]
[420984822,1776852631813,-154.50105261,0.00010077,2]
[420984823,1776852631823,-477.9847,0.00010104,2]
[420984824,1776852631832,-207.83577805,0.00010104,2]
[420984825,1776852631844,-1106.64191315,0.00010104,2]
[420984826,1776852631855,-1258.9,0.00010104,2]
[420984827,1776852631871,-555.92102686,0.00010104,2]
[420984828,1776852631883,-391.88,0.00010104,2]
[420984829,1776852631894,-1421.69894956,0.00010104,2]
[420984830,1776852631906,-7605.46969259,0.00010104,2]
[420984831,1776852631918,-759.87220332,0.00010104,2]
[420984832,1776852631930,-303.59891874,0.00010104,2]
[420984833,1776852631956,-6739.75353032,0.00010104,2]
[420984834,1776852631968,-2114.8037051,0.00010104,2]
[420984835,1776852631979,-1643.28648699,0.00010104,2]
[420984836,1776852631995,-607.56498033,0.00010104,2]
[420984859,1776852639792,-500.0,0.00010103,2]
[420984860,1776852639802,-360.38028519,0.00010103,2]
[420984861,1776852639811,-500.0,0.00010103,2]
[420984862,1776852639820,-500.0,0.00010103,2]
[420984863,1776852639830,-500.0,0.00010103,2]
[420984864,1776852639839,-500.0,0.00010103,2]
[420984865,1776852639848,-30.58397808,0.00010103,2]
[420984866,1776852639860,-469.41602192,0.00010103,2]
[420984867,1776852639870,-500.0,0.00010103,2]
[420984868,1776852639878,-500.0,0.00010103,2]
[420984869,1776852639887,-500.0,0.00010103,2]
[420984870,1776852639896,-448.65922808,0.00010103,2]
[420984871,1776852639912,-51.34077192,0.00010103,2]
[420984872,1776852639921,-500.0,0.00010103,2]
[420984873,1776852639931,-258.39214371,0.00010103,2]
[420984874,1776852639945,-241.60785629,0.00010103,2]
[420984875,1776852639954,-82.86833802,0.00010103,2]
[420984876,1776852639966,-417.13166198,0.00010103,2]
[420984877,1776852639976,-500.0,0.00010103,2]
[420984878,1776852639985,-500.0,0.00010103,2]
[420984879,1776852639995,-500.0,0.00010103,2]
[420984880,1776852640004,-500.0,0.00010103,2]
[420984881,1776852640013,-500.0,0.00010103,2]
[420984882,1776852640023,-500.0,0.00010103,2]
[420984883,1776852640032,-500.0,0.00010103,2]
[420984884,1776852640042,-500.0,0.00010103,2]
[420984885,1776852640051,-500.0,0.00010103,2]
[420984886,1776852640061,-500.0,0.00010103,2]
[420984887,1776852640070,-500.0,0.00010103,2]
[420984888,1776852640079,-500.0,0.00010103,2]
[420984889,1776852640089,-500.0,0.00010103,2]
[420984890,1776852640098,-500.0,0.00010103,2]
[420984891,1776852640108,-500.0,0.00010103,2]
[420984892,1776852640117,-500.0,0.00010103,2]
[420984893,1776852640127,-500.0,0.00010103,2]
[420984894,1776852640136,-500.0,0.00010103,2]
[420984895,1776852640146,-500.0,0.00010103,2]
[420984896,1776852640155,-500.0,0.00010103,2]
[420984897,1776852640165,-500.0,0.00010103,2]
[420984898,1776852640174,-613.76832382,0.00010103,2]
[420984899,1776852640184,-500.0,0.00010103,2]
[420984900,1776852640193,-500.0,0.00010103,2]
[420984901,1776852640203,-500.0,0.00010103,2]
[420984902,1776852640213,-500.0,0.00010103,2]
[420984903,1776852640222,-500.0,0.00010103,2]
[420984904,1776852640232,-500.0,0.00010103,2]
[420984905,1776852640241,-500.0,0.00010103,2]
[420984906,1776852640251,-500.0,0.00010103,2]
[420984907,1776852640260,-5290.09611277,0.00010104,2]
[420984908,1776852640297,-12610.98583388,0.00010104,2]
[420984909,1776852640308,-410.175902,0.00010104,2]
[420984910,1776852640320,-305.153193,0.00010104,2]
[420984911,1776852640414,-922.18333418,0.00010104,2]
[420984912,1776852640425,-12848.00941468,0.00010104,2]
[420984913,1776852640474,-546.36441182,0.00010104,2]
[420984914,1776852641711,500.0,0.00010103,2]
[420984929,1776852643177,-3810.75941196,0.00010104,2]
[420984930,1776852643190,-1788.9066483,0.00010104,2]
[420984935,1776852646378,-4086.83482276,0.00010104,2]
[420984936,1776852646394,-2563.63814344,0.00010104,2]
[420984937,1776852646406,-4950.91469702,0.00010104,2]
[420984938,1776852646417,-1016.91454865,0.00010104,2]
[420984940,1776852646429,-1617.77220968,0.00010104,2]
[420984942,1776852651207,500.0,0.00010103,2]
[420984943,1776852651248,500.0,0.00010103,2]
[420984944,1776852651301,500.0,0.00010103,2]
[420984945,1776852651352,500.0,0.00010103,2]
[420984946,1776852651399,500.0,0.00010103,2]
[420984947,1776852651451,411.37683238,0.00010103,2]
[420984948,1776852651500,500.0,0.00010103,2]
[420984949,1776852658319,638.27,9.997e-05,2]
[420984950,1776852661166,300.0,0.00010103,2]
[420984951,1776852813540,-200.0,9.778e-05,2]
[420984952,1776852852014,160.0,9.778e-05,3]
[420984954,1776852907729,160.0,9.778e-05,3]
[420984955,1776852966623,160.0,9.778e-05,3]
[420984956,1776852994125,1787.99,9.568e-05,2]
[420984957,1776853026819,160.0,9.778e-05,3]
[420984958,1776853027993,155.7,9.527e-05,2]
[420984959,1776853088797,160.0,9.778e-05,3]
[420984960,1776853143677,2000.0,9.507e-05,2]
[420984962,1776853226262,260.0,9.863e-05,2]
[420984963,1776853251905,1500.0,9.464e-05,2]
[420984967,1776853368229,260.0,9.863e-05,2]
[420984968,1776853403818,-570.37,9.997e-05,2]
[420984969,1776853403845,-183.38,0.00010001,2]
[420984970,1776853403872,-638.27,0.00010001,2]
[420984971,1776853403900,-332.33,0.00010003,2]
[420984972,1776853404286,-5437.98316762,0.00010004,2]
[420984973,1776853404300,-10000.01,0.00010004,2]
[420984974,1776853404315,-10000.01,0.00010004,2]
[420984975,1776853404329,-10000.01,0.00010004,2]
[420984976,1776853405594,-10000.01,0.00010004,2]
[420984977,1776853405715,-10000.01,0.00010004,2]
[420984978,1776853411640,-10000.01,0.00010004,2]
[420984979,1776853411762,-4597.02586762,0.00010004,2]
[420984980,1776853411786,-805.95826476,0.00010004,2]
[420984981,1776853411966,-2500.0,0.00010004,2]
[420984997,1776853832014,-269.0,9.195e-05,2]
[420984998,1776853832024,-151.0,9.195e-05,2]
[420984999,1776853832033,-136.90985098,9.863e-05,2]
[420985024,1776853838421,-123.09014902,9.863e-05,2]
[420985025,1776853838431,-211.22941835,9.904e-05,2]
[420985026,1776853838441,-162.07277148,9.93e-05,2]
[420985027,1776853838591,-49.15664686,9.93e-05,2]
[420985028,1776853838601,-211.22941834,9.956e-05,2]
[420985029,1776853838610,-702.35724449,9.99e-05,2]
[420985030,1776853838619,-568.13,9.997e-05,2]
[420985031,1776853838629,-1200.0,0.00010003,2]
[420985032,1776853838638,-19.04520499,0.00010003,2]
[420985033,1776853838704,-130.95479501,0.00010003,2]
[420985034,1776853838713,-300.0,0.00010003,2]
[420985035,1776853838722,-386.87247767,0.00010004,2]
[420985036,1776853838731,-155.0,0.00010004,3]
[420985037,1776853838740,-160.0,0.00010004,3]
[420985038,1776853838749,-864.3739402,0.00010004,2]
[420985046,1776853840522,-946.05260061,0.00010004,2]
[420985047,1776853840585,-259.39905185,0.00010004,2]
[420985048,1776853842211,-563.00210734,0.00010004,2]
[420985049,1776853842221,-978.443,0.00010004,2]
[420985050,1776853842230,-2500.0,0.00010004,2]
[420985051,1776853842239,-2547.66959809,0.00010004,2]
[420985052,1776853842250,-787.67,0.00010004,2]
[420985053,1776853842269,-3573.87611446,0.00010004,2]
[420985065,1776853846447,-392.62,9.996e-05,2]
[420985066,1776853846458,-2273.70079483,0.00010004,2]
[420985067,1776853846470,-666.66,0.00010004,2]
[420985068,1776853846482,-673.3310658,0.00010004,2]
[420985069,1776853846504,-7422.44802682,0.00010004,2]
[420985070,1776853846513,-7575.04058394,0.00010004,2]
[420985073,1776853846682,-562.39994,0.00010004,2]
[420985074,1776853846694,-345.0,0.00010004,2]
[420985075,1776854139123,-254.0,7.945e-05,2]
[420985076,1776854142252,-1654.942805,7.945e-05,2]
[420985077,1776854204067,-150.0,8.581e-05,2]
[420985078,1776854222116,-264.0,8.826e-05,2]
[420985079,1776854222145,-587.45,9.076e-05,2]
[420985080,1776854222173,-151.0,9.205e-05,2]
[420985081,1776854222200,-3385.784803,9.509e-05,2]
[420985082,1776854222492,-1223.540394,9.509e-05,2]
[420985083,1776854223064,-1200.0,9.557e-05,2]
[420985084,1776854223093,-260.0,9.863e-05,2]
[420985085,1776854223141,-7080.01,9.91e-05,2]
[420985086,1776854229164,-1198.43120906,9.91e-05,2]
[420985087,1776854537564,-2822.26886413,9.09e-05,2]
[420985088,1776855032450,-636.65095903,9.012e-05,2]
[420985089,1776855032503,-963.34904097,9.012e-05,2]
[420985090,1776855032513,-218.0,9.012e-05,2]
[420985091,1776855032522,-2778.10113587,9.09e-05,2]
[420985092,1776855032532,-502.69087961,9.456e-05,2]
[420985093,1776855032541,-1200.0,9.461e-05,2]
[420985094,1776855032550,-300.0,9.462e-05,2]
[420985095,1776855032559,-17803.26,9.463e-05,2]
[420985096,1776855032568,-250.0,9.558e-05,2]
[420985097,1776855032577,-73191.93457162,9.625e-05,2]
[420985098,1776855032589,-856.08682692,9.625e-05,2]
[420985099,1776855032599,-3031.8631592,9.625e-05,2]
[420985100,1776855032611,-591.86802884,9.625e-05,2]
[420985101,1776855032621,-16045.21777574,9.625e-05,2]
[420985102,1776855032632,-262.02687277,9.625e-05,2]
[420985169,1776855038480,-999.8506,9.625e-05,2]
[420985170,1776855038492,-1021.88178341,9.625e-05,2]
[420985171,1776855038504,-1164.20361154,9.625e-05,2]
[420985172,1776855038515,-431.69598331,9.625e-05,2]
[420985173,1776855038535,-103442.39758665,9.625e-05,2]
[420985174,1776855038544,-2104.768,9.626e-05,2]
[420985175,1776855038553,-975.0,9.675e-05,2]
[420985176,1776855038563,-1797.0,9.695e-05,2]
[420985177,1776855038572,-500.0,9.703e-05,2]
[420985178,1776855038582,-500.75597371,9.703e-05,2]
[420985179,1776855038591,-500.0,9.703e-05,2]
[420985180,1776855038601,-150.0,9.724e-05,2]
[420985181,1776855038611,-155.0,9.724e-05,2]
[420985182,1776855038620,-500.0,9.725e-05,2]
[420985183,1776855038630,-500.0,9.725e-05,2]
[420985184,1776855038639,-500.0,9.725e-05,2]
[420985185,1776855038649,-500.0,9.725e-05,2]
[420985186,1776855038658,-500.0,9.725e-05,2]
[420985187,1776855038668,-500.0,9.725e-05,2]
[420985188,1776855038678,-500.0,9.725e-05,2]
[420985189,1776855038691,-500.0,9.725e-05,2]
[420985190,1776855038701,-500.0,9.725e-05,2]
[420985191,1776855038711,-500.0,9.725e-05,2]
[420985192,1776855038720,-500.0,9.725e-05,2]
[420985193,1776855038729,-500.0,9.725e-05,2]
[420985194,1776855038739,-500.0,9.725e-05,2]
[420985195,1776855038748,-500.0,9.725e-05,2]
[420985196,1776855038759,-500.0,9.725e-05,2]
[420985197,1776855038768,-500.0,9.725e-05,2]
[420985198,1776855038778,-500.0,9.725e-05,2]
[420985199,1776855038787,-500.0,9.725e-05,2]
[420985200,1776855038796,-500.0,9.725e-05,2]
[420985201,1776855038806,-500.0,9.725e-05,2]
[420985202,1776855038815,-500.0,9.725e-05,2]
[420985203,1776855038825,-500.0,9.725e-05,2]
[420985204,1776855038834,-500.0,9.725e-05,2]
[420985205,1776855038844,-500.0,9.725e-05,2]
[420985206,1776855038854,-500.0,9.725e-05,2]
[420985207,1776855038863,-500.0,9.725e-05,2]
[420985208,1776855038873,-500.0,9.725e-05,2]
[420985209,1776855038883,-500.0,9.725e-05,2]
[420985210,1776855038892,-500.0,9.725e-05,2]
[420985211,1776855038902,-500.0,9.725e-05,2]
[420985212,1776855038916,-500.0,9.725e-05,2]
[420985213,1776855038925,-500.0,9.725e-05,2]
[420985214,1776855038934,-500.0,9.725e-05,2]
[420985215,1776855038944,-500.0,9.725e-05,2]
[420985216,1776855038953,-500.0,9.725e-05,2]
[420985217,1776855038963,-500.0,9.725e-05,2]
[420985218,1776855038973,-500.0,9.725e-05,2]
[420985219,1776855038982,-500.0,9.725e-05,2]
[420985220,1776855038992,-500.0,9.725e-05,2]
[420985221,1776855039001,-500.0,9.725e-05,2]
[420985222,1776855039011,-500.0,9.725e-05,2]
[420985223,1776855039020,-755.66440949,9.725e-05,2]
[420985224,1776855039030,-755.66440949,9.725e-05,2]
[420985225,1776855039039,-755.66440949,9.725e-05,2]
[420985226,1776855039048,-755.66440949,9.725e-05,2]
[420985227,1776855039059,-755.66440949,9.725e-05,2]
[420985228,1776855039068,-755.66440949,9.725e-05,2]
[420985229,1776855039078,-755.66440949,9.725e-05,2]
[420985230,1776855039088,-755.66440949,9.725e-05,2]
[420985231,1776855039097,-755.66440949,9.725e-05,2]
[420985232,1776855039107,-755.66440949,9.725e-05,2]
[420985233,1776855039116,-755.66440949,9.725e-05,2]
[420985234,1776855039126,-755.66440949,9.725e-05,2]
[420985235,1776855039135,-755.66440949,9.725e-05,2]
[420985236,1776855039148,-755.66440949,9.725e-05,2]
[420985237,1776855039158,-755.66440949,9.725e-05,2]
[420985238,1776855039167,-755.66440949,9.725e-05,2]
[420985239,1776855039177,-755.66440949,9.725e-05,2]
[420985240,1776855039187,-755.66440949,9.725e-05,2]
[420985241,1776855039196,-755.66440949,9.725e-05,2]
[420985242,1776855039206,-755.66440949,9.725e-05,2]
[420985243,1776855039215,-755.66440949,9.725e-05,2]
[420985244,1776855039225,-755.66440949,9.725e-05,2]
[420985245,1776855039235,-755.66440949,9.725e-05,2]
[420985246,1776855039244,-755.66440949,9.725e-05,2]
[420985247,1776855039254,-755.66440949,9.725e-05,2]
[420985248,1776855039264,-755.66440949,9.725e-05,2]
[420985249,1776855039273,-755.66440949,9.725e-05,2]
[420985250,1776855039283,-755.66440949,9.725e-05,2]
[420985251,1776855039293,-755.66440949,9.725e-05,2]
[420985252,1776855039302,-755.66440949,9.725e-05,2]
[420985253,1776855039311,-755.66440949,9.725e-05,2]
[420985254,1776855039321,-755.66440949,9.725e-05,2]
[420985255,1776855039331,-755.66440949,9.725e-05,2]
[420985256,1776855039340,-755.66440949,9.725e-05,2]
[420985257,1776855039349,-755.66440949,9.725e-05,2]
[420985258,1776855039359,-755.66440949,9.725e-05,2]
[420985259,1776855039368,-737.06343942,9.725e-05,2]
[420985260,1776855039378,-737.06343942,9.725e-05,2]
[420985261,1776855039387,-737.06343942,9.725e-05,2]
[420985262,1776855039397,-737.06343942,9.725e-05,2]
[420985263,1776855039406,-737.06343942,9.725e-05,2]
[420985264,1776855039416,-737.06343942,9.725e-05,2]
[420985265,1776855039425,-737.06343942,9.725e-05,2]
[420985266,1776855039434,-737.06343942,9.725e-05,2]
[420985267,1776855039443,-737.06343942,9.725e-05,2]
[420985268,1776855039986,-737.06343942,9.725e-05,2]
[420985269,1776855040005,-737.06343942,9.725e-05,2]
[420985270,1776855040015,-737.06343942,9.725e-05,2]
[420985271,1776855040025,-737.06343938,9.725e-05,2]
[420985272,1776855040034,-296516.25918204,9.726e-05,2]
[420985273,1776855040053,-1738.835448,9.726e-05,2]
[420985274,1776855040069,-333.01924919,9.726e-05,2]
[420985275,1776855040080,-1337.35,9.726e-05,2]
[420985276,1776855040091,-14989.6315154,9.726e-05,2]
[420985277,1776855040109,-436.75223375,9.726e-05,2]
[420985278,1776855040120,-993.71667762,9.726e-05,2]
[420985279,1776855040131,-1033.56296967,9.726e-05,2]
[420985280,1776855040142,-2728.59080976,9.726e-05,2]
[420985281,1776855040157,-3242.36316023,9.726e-05,2]
[420985282,1776855040168,-18580.95082153,9.726e-05,2]
[420985283,1776855040180,-1588.95992878,9.726e-05,2]
[420985288,1776855040712,-174591.99590403,9.726e-05,2]
[420985289,1776855040722,-150.0,9.732e-05,2]
[420985290,1776855040731,-150.0,9.732e-05,2]
[420985291,1776855040741,-168.33,9.738e-05,2]
[420985292,1776855040750,-230.0,9.742e-05,2]
[420985293,1776855040759,-725.0,9.778e-05,2]
[420985294,1776855040769,-783.966702,9.787e-05,2]
[420985295,1776855040778,-477.1459745,9.787e-05,2]
[420985296,1776855040787,-13286.8017461,9.826e-05,2]
[420985297,1776855040796,-1112.7905426,9.826e-05,2]
[420985298,1776855040805,-262.033298,9.826e-05,2]
[420985299,1776855040815,-152.0,9.828e-05,7]
[420985300,1776855040824,-260.0,9.863e-05,2]
[420985301,1776855040834,-10544.78,9.874e-05,2]
[420985302,1776855040843,-300.0,9.9e-05,3]
[420985303,1776855040852,-349.94711781,9.913e-05,2]
[420985304,1776855040862,-4735.89715988,9.913e-05,2]
[420985305,1776855040871,-250.0,9.913e-05,2]
[420985306,1776855040881,-762.99974701,9.926e-05,2]
[420985307,1776855040890,-568.13,9.997e-05,2]
[420985308,1776855040900,-200.0,0.0001,2]
[420985309,1776855040911,-700.0,0.0001,3]
[420985310,1776855040920,-500.0,0.00010004,2]
[420985311,1776855040930,-200.0,0.00010004,2]
[420985312,1776855040940,-160.0,0.00010004,3]
[420985313,1776855040949,-151.0,0.00010004,2]
[420985314,1776855040958,-151.96292736,0.00010004,2]
[420985315,1776855040968,-284.77,0.00010016,2]
[420985316,1776855040977,-3632.3349858,0.00010049,2]
[420985317,1776855040987,-578.20924308,0.00010056,2]
[420985318,1776855040997,-721.12765535,0.00010056,2]
[420985319,1776855041007,-1428.38747117,0.00010056,2]
[420985320,1776855041016,-209.40437684,0.00010056,2]
[420985321,1776855041026,-200.0,0.00010056,2]
[420985322,1776855041035,-824.76650872,0.00010056,2]
[420985323,1776855041044,-500.0,0.00010056,2]
[420985324,1776855041054,-2000.0,0.00010056,2]
[420985325,1776855041063,-2000.0,0.00010056,2]
[420985326,1776855041073,-2000.0,0.00010056,2]
[420985327,1776855041083,-209.40437684,0.00010056,2]
[420985328,1776855041092,-2000.0,0.00010056,2]
[420985330,1776855041102,-2000.0,0.00010056,2]
[420985332,1776855041111,-2000.0,0.00010056,2]
[420985333,1776855041120,-2000.0,0.00010056,2]
[420985334,1776855041130,-2000.0,0.00010056,2]
[420985335,1776855041139,-2000.0,0.00010056,2]
[420985336,1776855041148,-743.50770149,0.00010056,2]
[420985337,1776855041158,-2000.0,0.00010056,2]
[420985338,1776855041167,-1075.56128112,0.00010056,2]
[420985339,1776855041176,-151.0,0.00010056,2]
[420985340,1776855041186,-174.61919141,0.00010056,2]
[420985341,1776855041196,-235.75327194,0.00010056,2]
[420985342,1776855041205,-693.3919763,0.00010056,2]
[420985343,1776855041214,-244.476143,0.00010056,2]
[420985344,1776855041224,-253.52176029,0.00010056,2]
[420985345,1776855041233,-151.1837373,0.00010056,2]
[420985346,1776855041243,-262.90206542,0.00010056,2]
[420985347,1776855041253,-312.36992438,0.00010056,2]
[420985348,1776855041263,-279.9045709,0.00010056,2]
[420985349,1776855041272,-152.0,0.00010056,2]
[420985350,1776855041282,-152.0,0.00010056,2]
[420985351,1776855041291,-152.0,0.00010056,2]
[420985352,1776855041301,-152.0,0.00010056,2]
[420985353,1776855041310,-152.0,0.00010056,2]
[420985354,1776855041320,-152.0,0.00010056,2]
[420985355,1776855041329,-152.0,0.00010056,2]
[420985356,1776855041339,-152.0,0.00010056,2]
[420985357,1776855041349,-152.0,0.00010056,2]
[420985358,1776855041358,-152.0,0.00010056,2]
[420985359,1776855041368,-197.16228389,0.00010056,2]
[420985360,1776855041378,-209.40437684,0.00010056,2]
[420985361,1776855041387,-155.7,0.00010056,2]
[420985362,1776855041397,-500.70074508,0.00010073,2]
[420985363,1776855041407,-500.0,0.00010073,2]
[420985364,1776855041416,-210.05389956,0.00010073,2]